bitfinex/quotes_SOLUSD_20250507
["timestamp","ask_amount","ask_price","bid_price","bid_amount"]
[1746660908771,34.95357003,147.87,147.83,11.28393492]
[1746660909378,34.95357003,147.87,147.82,11.28393492]
[1746660909878,34.95357003,147.87,147.83,11.28393492]
[1746660912481,34.95357003,147.87,147.82,11.28393492]
[1746660912882,34.95357003,147.87,147.83,11.28393492]
[1746660913566,34.95357003,147.87,147.82,11.28393492]
[1746660918474,34.95357003,147.87,147.83,11.28393492]
[1746660918881,11.28393492,147.86,147.8,6.5146]
[1746660919064,11.28393492,147.85,147.79,1.77626157]
[1746660919384,23.67264118,147.85,147.82,11.28393492]
[1746660921182,34.9565761,147.85,147.81,11.28393492]
[1746660921574,23.67264118,147.85,147.81,11.28393492]
[1746660921774,23.67264118,147.85,147.81,7.22329428]
[1746660923590,30.89593546,147.85,147.81,7.22329428]
[1746660923778,30.89593546,147.85,147.79,1.6341]
[1746660924090,30.89593546,147.85,147.8,7.22329428]
[1746660924593,7.22329428,147.84,147.8,7.22329428]
[1746660924987,7.22329428,147.84,147.79,8.85739428]
[1746660925689,184.34282598,147.84,147.76,6.414]
[1746660925887,23.68064952,147.8,147.77,7.22329428]
[1746660926387,23.68064952,147.8,147.78,7.22329428]
[1746660927173,6.76589986,147.8,147.79,7.22329428]
[1746660927573,6.76589986,147.8,147.78,7.22329428]
[1746660928089,23.67746884,147.82,147.78,7.22329428]
[1746660928590,23.67746884,147.82,147.75,0.14216157]
[1746660928888,30.90076312,147.82,147.78,7.22329428]
[1746660929086,30.90076312,147.82,147.75,0.14216157]
[1746660929278,30.90076312,147.82,147.78,7.22329428]
[1746660930496,30.90076312,147.82,147.75,0.14216157]
[1746660930691,30.90076312,147.82,147.78,7.22329428]
[1746660930996,16.9124844,147.82,147.78,7.22329428]
[1746660931196,24.13577868,147.82,147.75,0.14216157]
[1746660931494,24.13577868,147.82,147.74,1.5869]
[1746660931495,144.02329428,147.81,147.77,7.22329428]
[1746660931794,144.02329428,147.81,147.74,1.5869]
[1746660932091,144.02329428,147.81,147.76,7.22329428]
[1746660932092,7.22329428,147.8,147.76,7.22329428]
[1746660932280,18.64964886,147.8,147.74,1.5869]
[1746660932475,7.22329428,147.79,147.75,7.22329428]
[1746660932679,136.8,147.79,147.76,7.22329428]
[1746660933193,6.76681553,147.78,147.77,7.22329428]
[1746660933389,6.76681553,147.78,147.76,7.22329428]
[1746660933789,6.76681553,147.78,147.74,1.5869]
[1746660933990,6.76681553,147.78,147.76,11.29435823]
[1746660934900,23.68385437,147.78,147.75,11.29435823]
[1746660935698,23.68385437,147.78,147.76,11.29435823]
[1746660935900,23.68385437,147.78,147.75,11.29435823]
[1746660937303,34.9782126,147.78,147.74,11.29435823]
[1746660938302,136.8,147.77,147.74,11.29435823]
[1746660939502,11.29435823,147.76,147.7,1.5294]
[1746660939694,148.09435823,147.77,147.73,11.29435823]
[1746660939896,136.8,147.76,147.74,11.29435823]
[1746660940389,6.7681895,147.75,147.74,11.29435823]
[1746660940587,6.7681895,147.75,147.73,11.29435823]
[1746660941503,23.68866327,147.75,147.7,1.5294]
[1746660941707,23.68866327,147.75,147.74,11.29435823]
[1746660943223,23.68866327,147.75,147.73,11.29435823]
[1746660943698,6.7681895,147.75,147.74,11.29435823]
[1746660945692,6.7681895,147.75,147.7,12.82375823]
[1746660945891,6.7681895,147.75,147.74,11.29435823]
[1746660946206,6.7681895,147.75,147.7,12.82375823]
[1746660946507,6.7681895,147.75,147.74,11.29435823]
[1746660949005,6.7681895,147.75,147.7,12.82375823]
[1746660949312,6.7681895,147.75,147.73,11.29435823]
[1746660949614,6.7681895,147.75,147.7,1.5294]
[1746660949796,6.7681895,147.75,147.72,11.29435823]
[1746660950201,18.06254773,147.75,147.7,1.5294]
[1746660950403,6.7681895,147.75,147.71,11.29435823]
[1746660950595,6.7681895,147.75,147.72,11.29435823]
[1746660950791,23.68866327,147.75,147.72,11.29435823]
[1746660951718,23.68866327,147.75,147.73,11.29435823]
[1746660952815,23.68866327,147.75,147.72,11.29435823]
[1746660953611,23.68866327,147.75,147.73,11.29435823]
[1746660953819,23.68866327,147.75,147.74,7.23191204]
[1746660953991,6.7681895,147.75,147.74,7.23191204]
[1746660958798,143.56786546,147.76,147.74,7.23191204]
[1746660958999,143.56786546,147.76,147.75,7.23191204]
[1746660961808,136.8,147.76,147.75,7.23191204]
[1746660962007,143.56773145,147.76,147.75,7.23191204]
[1746660962220,6.76773145,147.76,147.75,7.23191204]
[1746660962920,6.76681553,147.78,147.75,7.23191204]
[1746660963120,6.76681553,147.78,147.76,7.23191204]
[1746660965106,6.76681553,147.78,147.7,30.45704816]
[1746660965107,23.68385437,147.78,147.7,37.22739765]
[1746660965424,30.91576641,147.78,147.74,7.23191204]
[1746660965802,23.68385437,147.78,147.74,7.23191204]
[1746660967523,23.68385437,147.78,147.71,0.14216157]
[1746660967827,30.91576641,147.78,147.74,7.23191204]
[1746660968830,23.68385437,147.78,147.75,7.23191204]
[1746660971036,23.68385437,147.78,147.76,7.23191204]
[1746660973145,23.68385437,147.78,147.71,0.14216157]
[1746660973436,23.68385437,147.78,147.75,7.23191204]
[1746660973609,23.68385437,147.78,147.71,0.14216157]
[1746660973816,23.68385437,147.78,147.75,7.23191204]
[1746660978840,23.68385437,147.78,147.76,7.23191204]
[1746660979058,6.76681553,147.78,147.76,7.23191204]
[1746660979342,6.76681553,147.78,147.77,7.23191204]
[1746660991458,6.76681553,147.78,147.74,1.6343]
[1746660991643,6.76681553,147.78,147.77,7.23191204]
[1746660994556,6.76681553,147.78,147.74,1.6343]
[1746660994759,6.76681553,147.78,147.77,7.23191204]
[1746660996855,136.8,147.79,147.77,7.23191204]
[1746660997030,6.76582443,147.81,147.78,7.23191204]
[1746660997231,6.76582443,147.81,147.8,7.23191204]
[1746660998462,6.76499927,147.82,147.8,7.23191204]
[1746660998767,6.76499927,147.82,147.81,7.23191204]
[1746661000555,143.56472073,147.83,147.81,7.23191204]
[1746661000762,143.56472073,147.83,147.82,7.23191204]
[1746661001637,136.8,147.87,147.82,7.23191204]
[1746661001841,6.76269696,147.87,147.85,7.23191204]
[1746661003163,6.76269696,147.87,147.86,7.23191204]
[1746661008566,6.76269696,147.87,147.8,6.90803379]
[1746661008868,6.76269696,147.87,147.85,7.23191204]
[1746661009076,6.76269696,147.87,147.81,0.14216157]
[1746661009240,6.76269696,147.87,147.85,7.23191204]
[1746661015266,6.76269696,147.87,147.81,0.14216157]
[1746661015462,6.76269696,147.87,147.85,7.23191204]
[1746661024483,23.66943936,147.87,147.84,7.23191204]
[1746661024667,7.23191204,147.85,147.79,1.5769]
[1746661024980,7.23191204,147.84,147.8,7.23191204]
[1746661025964,25.8815609,147.85,147.8,7.23191204]
[1746661026163,25.8815609,147.85,147.79,7.23191204]
[1746661026164,7.23191204,147.83,147.79,7.23191204]
[1746661026982,167.70615446,147.84,147.79,7.23191204]
[1746661028285,7.23191204,147.82,147.76,0.14216157]
[1746661028486,144.03191204,147.81,147.77,7.23191204]
[1746661029987,6.76589986,147.8,147.77,7.23191204]
[1746661033780,6.76589986,147.8,147.79,7.23191204]
[1746661037597,6.76589986,147.8,147.78,7.23191204]
[1746661041475,6.76589986,147.8,147.79,7.23191204]
[1746661043000,6.76589986,147.8,147.78,7.23191204]
[1746661047490,6.76589986,147.8,147.79,7.23191204]
[1746661049605,136.8,147.81,147.79,7.23191204]
[1746661049807,136.8,147.81,147.8,7.23191204]
[1746661052201,136.8,147.81,147.8,8.73411204]
[1746661052513,6.76361176,147.85,147.8,8.73411204]
[1746661052816,6.76361176,147.85,147.84,7.23191204]
[1746661054411,6.76361176,147.85,147.81,0.14216157]
[1746661054610,6.76361176,147.85,147.84,7.23191204]
[1746661059512,6.76361176,147.85,147.82,7.23191204]
[1746661059888,6.76361176,147.85,147.83,7.23191204]
[1746661061505,23.67264118,147.85,147.8,1.5022]
[1746661061709,23.67264118,147.85,147.82,11.28570142]
[1746661063206,23.67264118,147.85,147.8,1.5022]
[1746661063407,23.67264118,147.85,147.82,11.28570142]
[1746661064611,23.67264118,147.85,147.81,11.28570142]
[1746661064911,18.64964886,147.76,147.68,10.64028864]
[1746661065084,29.93535028,147.76,147.72,11.28570142]
[1746661065289,8.50086853,147.75,147.72,11.28570142]
[1746661065607,42.91894872,147.77,147.73,11.28570142]
[1746661065910,6.76773145,147.76,147.74,11.28570142]
[1746661067717,23.68622218,147.77,147.74,11.28570142]
[1746661068208,23.68622218,147.77,147.73,11.28570142]
[1746661068722,34.9719236,147.77,147.73,11.28570142]
[1746661069710,34.9719236,147.77,147.72,11.28570142]
[1746661070715,11.28570142,147.76,147.72,11.28570142]
[1746661072120,6.7681895,147.75,147.68,0.14216157]
[1746661072321,6.7681895,147.75,147.72,11.28570142]
[1746661074317,6.7681895,147.75,147.71,11.28570142]
[1746661074519,11.28570142,147.73,147.69,26.0]
[1746661075221,11.28570142,147.73,147.69,11.28570142]
[1746661075421,11.28570142,147.73,147.68,11.42786299]
[1746661075629,11.28570142,147.73,147.69,11.28570142]
[1746661076620,6.76956404,147.72,147.69,11.28570142]
[1746661078219,160.49347414,147.72,147.65,0.9617832]
[1746661078420,160.49347414,147.72,147.69,11.28570142]
[1746661078722,160.49347414,147.72,147.68,11.28570142]
[1746661078903,171.77917556,147.72,147.66,0.14216157]
[1746661079100,171.77917556,147.72,147.67,11.28570142]
[1746661079302,160.49347414,147.72,147.66,11.28570142]
[1746661079514,171.77917556,147.72,147.67,11.28570142]
[1746661086622,171.77917556,147.72,147.68,11.28570142]
[1746661086825,160.49347414,147.72,147.68,11.28570142]
[1746661087029,171.77917556,147.72,147.68,11.28570142]
[1746661088132,171.77917556,147.72,147.66,0.14216157]
[1746661088331,171.77917556,147.72,147.68,11.28570142]
[1746661088737,171.77917556,147.72,147.67,11.28570142]
[1746661094843,11.28570142,147.71,147.67,11.28570142]
[1746661095146,11.28570142,147.71,147.66,11.42786299]
[1746661095743,171.77917556,147.72,147.67,11.28570142]
[1746661096544,6.7704807,147.7,147.66,0.14216157]
[1746661096730,6.7704807,147.7,147.66,11.42786299]
[1746661097640,6.77002234,147.71,147.67,11.28570142]
[1746661099343,6.77002234,147.71,147.68,11.28570142]
[1746661099545,6.77002234,147.71,147.7,11.28570142]
[1746661099743,6.77002234,147.71,147.7,7.23432767]
[1746661101951,6.77002234,147.71,147.69,11.30354156]
[1746661102949,148.10354156,147.7,147.65,0.9617832]
[1746661103140,136.8,147.7,147.67,11.30354156]
[1746661103348,136.8,147.7,147.68,11.30354156]
[1746661103828,136.8,147.7,147.65,0.9617832]
[1746661104031,11.30354156,147.69,147.65,0.9617832]
[1746661104230,136.8,147.7,147.65,12.26532476]
[1746661104425,148.10354156,147.7,147.65,12.26532476]
[1746661104632,148.10354156,147.7,147.66,11.30354156]
[1746661105046,6.77093912,147.69,147.66,11.30354156]
[1746661105260,6.77093912,147.69,147.65,0.9617832]
[1746661105430,6.77093912,147.69,147.66,11.30354156]
[1746661111659,6.77093912,147.69,147.67,11.30354156]
[1746661111962,6.77093912,147.69,147.68,11.30354156]
[1746661116841,6.77093912,147.69,147.67,11.30354156]
[1746661120737,6.77093912,147.69,147.67,11.77666076]
[1746661121180,6.77093912,147.69,147.67,0.4731192]
[1746661121539,6.77093912,147.69,147.67,11.77666076]
[1746661121844,6.77093912,147.69,147.67,0.4731192]
[1746661123080,18.07448068,147.69,147.67,0.4731192]
[1746661123747,11.30354156,147.68,147.67,0.4731192]
[1746661125069,18.07493917,147.68,147.67,0.4731192]
[1746661125263,6.77139761,147.68,147.67,0.4731192]
[1746661130245,143.57139761,147.68,147.67,0.4731192]
[1746661140558,150.81102191,147.68,147.67,0.4731192]
[1746661144089,32.66067077,147.68,147.67,0.4731192]
[1746661156979,58.66067077,147.68,147.67,0.4731192]
[1746661159183,51.42104647,147.68,147.67,0.4731192]
[1746661159389,58.66067077,147.68,147.67,0.4731192]
[1746661163195,58.80283234,147.68,147.67,0.4731192]
[1746661163395,52.92284043,147.68,147.67,0.4731192]
[1746661165802,44.64964886,147.65,147.6,1.5599]
[1746661165998,18.64964886,147.63,147.6,1.5599]
[1746661166218,136.3268808,147.62,147.58,11.32073462]
[1746661166522,136.3268808,147.62,147.56,1.6586]
[1746661166722,23.71113067,147.61,147.56,1.6586]
[1746661166892,23.71113067,147.61,147.58,11.32073462]
[1746661167398,23.71113067,147.61,147.56,1.6586]
[1746661167612,23.71113067,147.61,147.58,11.32073462]
[1746661168213,23.71113067,147.61,147.59,11.32073462]
[1746661171121,23.71113067,147.61,147.58,11.32073462]
[1746661175829,23.71113067,147.61,147.59,11.32073462]
[1746661176004,6.77460876,147.61,147.59,11.32073462]
[1746661176203,6.77460876,147.61,147.6,11.32073462]
[1746661177740,6.77369098,147.63,147.6,11.32073462]
[1746661177917,6.77369098,147.63,147.62,11.32073462]
[1746661178725,6.77231477,147.66,147.62,11.32073462]
[1746661178944,23.70310171,147.66,147.63,11.32073462]
[1746661179429,35.02383633,147.66,147.61,1.5409]
[1746661179633,29.97038348,147.65,147.61,1.5409]
[1746661179832,29.97038348,147.65,147.61,12.86163462]
[1746661181534,23.70631264,147.64,147.61,12.86163462]
[1746661182837,23.70631264,147.64,147.61,1.5409]
[1746661184031,23.70631264,147.64,147.61,12.86163462]
[1746661184234,160.03319344,147.64,147.61,12.86163462]
[1746661187730,160.03319344,147.64,147.61,8.78366493]
[1746661189734,167.27595837,147.64,147.61,1.5409]
[1746661190346,160.03319344,147.64,147.61,8.78366493]
[1746661192830,143.10011298,147.64,147.61,8.78366493]
[1746661193028,143.10011298,147.64,147.62,7.24276493]
[1746661194634,143.10011298,147.64,147.61,8.78366493]
[1746661199545,167.27595837,147.64,147.61,1.5409]
[1746661200040,7.24276493,147.63,147.57,1.6653]
[1746661200246,7.24276493,147.62,147.58,7.24276493]
[1746661203147,6.77460876,147.61,147.57,1.6653]
[1746661203333,6.77460876,147.61,147.58,7.24276493]
[1746661205750,16.93548835,147.62,147.58,7.24276493]
[1746661207250,16.93548835,147.62,147.57,1.6653]
[1746661207251,23.70963819,147.62,147.57,1.6653]
[1746661207423,23.70963819,147.62,147.58,7.24276493]
[1746661208345,30.95240312,147.62,147.58,7.24276493]
[1746661209041,16.93548835,147.62,147.59,7.24276493]
[1746661210254,23.70963819,147.62,147.59,7.24276493]
[1746661212758,23.70963819,147.62,147.57,1.6653]
[1746661212928,23.70963819,147.62,147.59,7.24276493]
[1746661215258,23.70963819,147.62,147.6,7.24276493]
[1746661216132,22.70963819,147.62,147.59,7.24276493]
[1746661218573,22.70963819,147.62,147.57,1.6653]
[1746661219053,22.70963819,147.62,147.59,7.24276493]
[1746661220169,22.70963819,147.62,147.6,7.24276493]
[1746661221060,22.70963819,147.62,147.57,1.6653]
[1746661221359,22.70963819,147.62,147.6,7.24276493]
[1746661221735,15.93548835,147.62,147.6,7.24276493]
[1746661223759,15.93548835,147.62,147.57,1.6653]
[1746661224069,15.93548835,147.62,147.6,7.24276493]
[1746661224444,6.77369098,147.63,147.6,7.24276493]
[1746661225773,6.77369098,147.63,147.59,7.24276493]
[1746661226064,56.95068337,147.63,147.58,7.24276493]
[1746661226442,56.95068337,147.63,147.59,7.24276493]
[1746661227266,56.95068337,147.63,147.58,7.24276493]
[1746661227465,56.95068337,147.63,147.57,1.6653]
[1746661227666,56.95068337,147.63,147.58,7.24276493]
[1746661228246,56.95068337,147.63,147.57,1.6653]
[1746661228448,56.95068337,147.63,147.59,7.24276493]
[1746661232687,7.24276493,147.62,147.58,7.24276493]
[1746661232974,7.24276493,147.61,147.57,8.90806493]
[1746661233182,7.24276493,147.61,147.57,1.6653]
[1746661233351,7.24276493,147.61,147.57,8.90806493]
[1746661234766,23.71273712,147.6,147.57,8.90806493]
[1746661240682,16.93766937,147.6,147.57,8.90806493]
[1746661243184,16.93766937,147.6,147.58,7.24276493]
[1746661245266,23.71273712,147.6,147.58,7.24276493]
[1746661246089,23.71273712,147.6,147.57,7.24276493]
[1746661246790,23.71273712,147.6,147.58,7.24276493]
[1746661246989,23.71273712,147.6,147.59,7.24276493]
[1746661247165,23.71273712,147.6,147.58,7.24276493]
[1746661247491,16.93766937,147.6,147.58,7.24276493]
[1746661250779,16.93766937,147.6,147.57,7.24276493]
[1746661254599,23.71273712,147.6,147.54,1.76586157]
[1746661255095,23.71273712,147.6,147.57,7.24276493]
[1746661255784,23.71273712,147.6,147.54,1.76586157]
[1746661255983,30.95550205,147.6,147.56,7.24276493]
[1746661260107,30.95550205,147.6,147.54,1.6237]
[1746661260297,30.95550205,147.6,147.56,7.24276493]
[1746661261103,30.95550205,147.6,147.54,1.6237]
[1746661261408,30.95550205,147.6,147.56,7.24276493]
[1746661264316,30.95550205,147.6,147.54,1.6237]
[1746661264695,30.95550205,147.6,147.56,7.24276493]
[1746661266812,23.71273712,147.6,147.57,7.24276493]
[1746661267016,6.77506775,147.6,147.59,7.24276493]
[1746661267682,6.77506775,147.6,147.55,0.14216157]
[1746661267992,6.77506775,147.6,147.59,7.24276493]
[1746661271816,143.1016596,147.61,147.59,7.24276493]
[1746661272023,143.1016596,147.61,147.6,7.24276493]
[1746661273919,143.1016596,147.61,147.57,6.0767]
[1746661274217,143.1016596,147.61,147.6,7.24276493]
[1746661278024,136.3268808,147.61,147.6,7.24276493]
[1746661278733,136.3268808,147.61,147.59,7.24276493]
[1746661284728,136.3268808,147.61,147.57,6.0767]
[1746661284729,136.3268808,147.61,147.6,7.24276493]
[1746661292234,136.3268808,147.64,147.6,7.24276493]
[1746661292537,143.56964573,147.64,147.6,7.24276493]
[1746661293941,143.56964573,147.64,147.57,6.0767]
[1746661294242,143.56964573,147.64,147.6,7.24276493]
[1746661295041,7.24276493,147.62,147.58,7.24276493]
[1746661300637,143.56964573,147.64,147.59,7.24276493]
[1746661301026,7.24276493,147.61,147.55,0.14216157]
[1746661301235,136.3268808,147.62,147.59,7.24276493]
[1746661301727,7.24276493,147.6,147.54,1.6237]
[1746661301932,7.24276493,147.6,147.56,7.24276493]
[1746661302316,136.3268808,147.61,147.59,7.24276493]
[1746661302646,136.3268808,147.61,147.58,7.24276493]
[1746661305639,136.3268808,147.61,147.55,0.14216157]
[1746661305832,136.3268808,147.61,147.58,7.24276493]
[1746661306642,135.8268808,147.61,147.58,7.24276493]
[1746661306841,143.06964573,147.61,147.55,0.14216157]
[1746661307020,143.06964573,147.61,147.57,7.24276493]
[1746661307950,135.8268808,147.61,147.58,7.24276493]
[1746661309043,6.77506775,147.6,147.59,7.24276493]
[1746661309233,6.77506775,147.6,147.58,7.24276493]
[1746661310145,6.77506775,147.6,147.59,7.24276493]
[1746661310824,135.8268808,147.61,147.59,7.24276493]
[1746661311124,135.8268808,147.61,147.6,7.24276493]
[1746661312852,142.60148956,147.61,147.6,7.24276493]
[1746661313442,142.60148956,147.61,147.55,0.14216157]
[1746661313630,166.7807764,147.61,147.55,0.14216157]
[1746661313832,159.53801147,147.61,147.58,7.24276493]
[1746661314223,159.53801147,147.61,147.59,7.24276493]
[1746661317235,142.60148956,147.61,147.59,7.24276493]
[1746661317438,142.60148956,147.61,147.6,7.24276493]
[1746661318158,142.60148956,147.61,147.57,0.14216157]
[1746661318331,142.60148956,147.61,147.6,7.24276493]
[1746661318753,6.77460876,147.61,147.6,7.24276493]
[1746661319260,16.93436833,147.63,147.6,7.24276493]
[1746661319442,16.93436833,147.63,147.61,7.24276493]
[1746661319645,16.93436833,147.63,147.58,1.6395]
[1746661319957,33.24276493,147.65,147.58,1.6395]
[1746661319958,33.24276493,147.65,147.61,7.24276493]
[1746661320843,26.0,147.65,147.62,7.24276493]
[1746661322356,33.24276493,147.65,147.59,0.14216157]
[1746661322658,33.24276493,147.65,147.61,7.24276493]
[1746661323832,7.24276493,147.65,147.61,7.24276493]
[1746661324155,135.8268808,147.66,147.61,7.24276493]
[1746661324344,143.06964573,147.66,147.62,7.24276493]
[1746661324538,143.06964573,147.66,147.59,0.14216157]
[1746661324844,143.06964573,147.66,147.62,7.24276493]
[1746661325050,135.8268808,147.66,147.62,7.24276493]
[1746661325245,135.8268808,147.66,147.63,7.24276493]
[1746661325559,185.08964573,147.68,147.64,7.24276493]
[1746661325940,7.24276493,147.65,147.59,0.14216157]
[1746661326141,7.24276493,147.65,147.61,7.24276493]
[1746661326377,7.24276493,147.65,147.62,7.24276493]
[1746661326530,154.47652966,147.67,147.63,7.24276493]
[1746661326734,161.71929459,147.67,147.63,7.24276493]
[1746661327033,161.71929459,147.67,147.62,7.24276493]
[1746661327329,7.24276493,147.66,147.62,7.24276493]
[1746661327957,135.8268808,147.67,147.63,7.24276493]
[1746661328160,135.8268808,147.67,147.64,7.24276493]
[1746661328351,135.8268808,147.67,147.59,0.14216157]
[1746661328352,143.06964573,147.67,147.63,7.24276493]
[1746661328961,135.8268808,147.67,147.63,7.24276493]
[1746661329256,143.06964573,147.67,147.59,0.14216157]
[1746661329465,7.24276493,147.66,147.62,7.24276493]
[1746661330863,7.24276493,147.65,147.59,0.14216157]
[1746661331166,135.8268808,147.67,147.61,7.24276493]
[1746661331370,143.06964573,147.67,147.62,7.24276493]
[1746661331534,135.8268808,147.66,147.62,7.24276493]
[1746661332162,143.06964573,147.66,147.62,7.24276493]
[1746661332859,7.24276493,147.65,147.58,1.6395]
[1746661333377,7.24276493,147.64,147.6,7.24276493]
[1746661333553,7.24276493,147.65,147.61,7.24276493]
[1746661336262,135.8268808,147.66,147.61,7.24276493]
[1746661336457,7.24276493,147.65,147.61,7.24276493]
[1746661337766,7.24276493,147.65,147.58,1.6395]
[1746661338067,7.24276493,147.65,147.61,7.24276493]
[1746661339049,7.24276493,147.65,147.58,1.6395]
[1746661339253,7.24276493,147.65,147.61,7.24276493]
[1746661340367,7.24276493,147.65,147.58,1.6395]
[1746661340563,7.24276493,147.65,147.61,7.24276493]
[1746661340779,135.8268808,147.66,147.63,7.24276493]
[1746661341282,143.06964573,147.66,147.59,0.14216157]
[1746661341458,7.24276493,147.64,147.6,7.24276493]
[1746661341666,7.24276493,147.65,147.61,7.24276493]
[1746661342145,7.24276493,147.65,147.6,7.24276493]
[1746661342572,7.24276493,147.64,147.58,1.6395]
[1746661342870,7.24276493,147.65,147.61,7.24276493]
[1746661343063,143.06964573,147.64,147.58,1.6395]
[1746661343369,143.06964573,147.64,147.6,7.24276493]
[1746661343576,135.8268808,147.64,147.6,7.24276493]
[1746661343874,135.8268808,147.64,147.61,7.24276493]
[1746661344047,135.8268808,147.64,147.58,1.6395]
[1746661344247,135.8268808,147.64,147.6,7.24276493]
[1746661345477,143.06964573,147.64,147.6,7.24276493]
[1746661348479,143.06964573,147.64,147.58,1.6395]
[1746661348658,143.06964573,147.64,147.59,7.24276493]
[1746661348860,7.24276493,147.63,147.58,8.88226493]
[1746661349769,7.24276493,147.62,147.58,8.88226493]
[1746661350276,7.24276493,147.62,147.58,1.6395]
[1746661350578,7.24276493,147.62,147.55,0.14216157]
[1746661350783,7.24276493,147.62,147.58,7.24276493]
[1746661353084,7.24276493,147.61,147.54,33.7317]
[1746661353389,18.64964886,147.61,147.54,7.7317]
[1746661353574,7.24276493,147.58,147.54,1.5878]
[1746661353771,143.06964573,147.6,147.56,7.24276493]
[1746661353965,135.8268808,147.6,147.57,7.24276493]
[1746661354167,135.8268808,147.6,147.59,7.24276493]
[1746661354598,135.8268808,147.6,147.58,7.24276493]
[1746661357791,135.8268808,147.6,147.54,8.0177]
[1746661358165,135.8268808,147.6,147.57,11.32241594]
[1746661358590,135.8268808,147.6,147.54,8.0177]
[1746661358985,135.8268808,147.6,147.57,11.32241594]
[1746661359191,135.78110495,147.6,147.57,11.32241594]
[1746661360193,135.78110495,147.6,147.56,11.32241594]
[1746661362394,147.10352089,147.6,147.56,11.32241594]
[1746661363292,135.78110495,147.6,147.56,11.32241594]
[1746661363492,147.10352089,147.6,147.56,11.32241594]
[1746661365592,135.78110495,147.6,147.57,11.32241594]
[1746661377836,135.78110495,147.6,147.57,7.2475917]
[1746661380321,143.02869665,147.6,147.54,8.0177]
[1746661380943,143.02869665,147.6,147.56,7.2475917]
[1746661383637,135.78110495,147.6,147.57,7.2475917]
[1746661384639,135.78110495,147.6,147.56,7.2475917]
[1746661387555,135.78110495,147.6,147.54,8.0177]
[1746661387854,135.78110495,147.6,147.56,7.2475917]
[1746661388352,135.78110495,147.6,147.57,7.2475917]
[1746661391960,6.77552679,147.59,147.57,7.2475917]
[1746661392355,6.77552679,147.59,147.54,8.0177]
[1746661392558,6.77552679,147.59,147.56,7.2475917]
[1746661392743,6.77552679,147.59,147.57,7.2475917]
[1746661398460,6.77552679,147.59,147.56,7.2475917]
[1746661399561,23.71434378,147.59,147.56,7.2475917]
[1746661399971,23.71434378,147.59,147.55,7.2475917]
[1746661402174,23.71434378,147.59,147.56,7.2475917]
[1746661405081,23.71434378,147.59,147.57,7.2475917]
[1746661405554,6.77552679,147.59,147.57,7.2475917]
[1746661405756,6.77552679,147.59,147.58,7.2475917]
[1746661406054,6.77552679,147.59,147.54,1.5878]
[1746661406055,6.77552679,147.59,147.57,7.2475917]
[1746661409358,6.77552679,147.59,147.58,7.2475917]
[1746661409557,6.77552679,147.59,147.57,7.2475917]
[1746661410788,6.77552679,147.59,147.54,1.5878]
[1746661410963,6.77552679,147.59,147.57,7.2475917]
[1746661412989,6.77552679,147.59,147.56,7.2475917]
[1746661414685,6.77552679,147.59,147.54,1.5878]
[1746661414884,6.77552679,147.59,147.55,7.2475917]
[1746661415386,14.02311849,147.59,147.54,8.8353917]
[1746661415766,30.96193548,147.59,147.54,8.8353917]
[1746661418195,30.96193548,147.59,147.54,8.78961584]
[1746661422497,23.71434378,147.59,147.55,7.2475917]
[1746661422799,23.71434378,147.59,147.56,7.2475917]
[1746661438619,23.71434378,147.59,147.54,1.54202414]
[1746661438955,23.71434378,147.59,147.56,7.2475917]
[1746661446143,23.71434378,147.59,147.54,1.54202414]
[1746661446314,23.71434378,147.59,147.56,7.2475917]
[1746661448742,6.77552679,147.59,147.57,7.2475917]
[1746661453446,6.77552679,147.59,147.54,1.54202414]
[1746661453747,6.77552679,147.59,147.56,7.2475917]
[1746661453930,6.77552679,147.59,147.57,7.2475917]
[1746661454839,6.77552679,147.59,147.54,1.54202414]
[1746661455045,6.77552679,147.59,147.57,7.2475917]
[1746661455259,6.77552679,147.59,147.56,7.2475917]
[1746661465258,30.96193548,147.59,147.54,1.54202414]
[1746661465461,30.96193548,147.59,147.55,7.2475917]
[1746661475174,135.78110495,147.58,147.55,7.2475917]
[1746661476164,6.77644507,147.57,147.55,7.2475917]
[1746661482175,6.77644507,147.57,147.54,1.54202414]
[1746661482365,6.77644507,147.57,147.55,7.2475917]
[1746661485367,6.77644507,147.57,147.56,6.7475917]
[1746661487976,142.55728079,147.58,147.56,6.7475917]
[1746661488175,142.55728079,147.58,147.57,7.2475917]
[1746661489582,135.78110495,147.58,147.57,7.2475917]
[1746661492189,6.77506775,147.6,147.57,7.2475917]
[1746661492484,135.78110495,147.61,147.59,7.2475917]
[1746661492672,135.78110495,147.61,147.6,7.2475917]
[1746661494185,6.77444894,147.62,147.6,7.2475917]
[1746661494186,135.78110495,147.64,147.6,7.2475917]
[1746661494367,6.77369098,147.63,147.62,7.2475917]
[1746661496190,6.77369098,147.63,147.61,7.2475917]
[1746661500889,6.77369098,147.63,147.58,1.5886]
[1746661501087,6.77369098,147.63,147.61,7.2475917]
[1746661502490,6.77369098,147.63,147.58,1.5886]
[1746661502683,6.77369098,147.63,147.6,7.2475917]
[1746661503067,23.70791844,147.63,147.59,7.2475917]
[1746661503289,30.95551014,147.63,147.59,7.2475917]